[Event "DFMM-LV 2023"]
[Site "Braunfels"]
[Date "2023.06.11"]
[Round "5.7"]
[White "Roesler, Hannah Clara"]
[Black "Trunz, Elena"]
[Result "0-1"]
[Annotator "TA"]
[ECO "B22"]
[WhiteElo "1748"]
[BlackElo "2122"]
[PlyCount "96"]
[EventDate "2023.06.09"]
[EventType "team-tourn"]
[EventCountry "GER"]
[SourceTitle "playchess.com"]
[Source "ChessBase"]
[SourceQuality "1"]
[TimeControl "40/5400+30:1800+30"]

{[%evp 15,95,19,24,0,4,10,25,10,16,11,18,0,10,11,15,0,33,33,58,0,0,0,54,0,7,-44,0,-96,-95,-151,-155,-187,-192,-252,-231,-211,-197,-303,-312,-521,-341,-338,-278,-1552,-167,-501,-315,-296,-184,-191,-185,-1167,-306,-314,0,0,54,57,145,-397,-307,-966,-676,-1940,-398,-29990,-29991,-29992,-29991,-29993,-29990,-29990,-29991,-29991,-29992,-29992,-29993,-29993,-29994,-29998,-29999,-29999]} 1. e4 {[%emt 0:00:03]} c5 {[%emt 0:00:06]} 2. c3 {[%emt 0:00:03]} d5 {[%emt 0:00:05]} 3. exd5 {[%emt 0:00:05]} Qxd5 {[%emt 0:00:04]} 4. d4 {[%emt 0:00:10]} Nf6 {[%emt 0:00:09]} 5. Nf3 {[%emt 0:00:19]} e6 {[%emt 0:00:10]} 6. Be3 {[%emt 0:04:09]} cxd4 {[%emt 0:04:09]} 7. cxd4 {[%emt 0:01:29]} Nc6 {[%emt 0:00:16]} 8. Nc3 {[%emt 0:01:19]} Qd6 {[%emt 0:00:12]} 9. Bd3 {[%emt 0:04:12] The modern move. B22: Sicilian: 2 c3.} Be7 {[%emt 0:01:46]} 10. O-O {[%emt 0:01:34]} Nb4 {[%emt 0:08:16]} 11. Bb1 {[%emt 0:00:48] White has an edge.} O-O {[%emt 0:09:00]} 12. a3 {[%emt 0:01:40]} Nbd5 {[%emt 0:00:49]} 13. Qd3 {[%emt 0:00:43] [#]} Nxe3 $146 {[%emt 0:06:19]} (13... Nf4 $5 {[%cal Rf4d3]} 14. Bxf4 Qxf4 $11) ({Predecessor:} 13... Nxc3 14. bxc3 b6 15. Bg5 g6 16. Ba2 Bb7 17. Ne5 Nd7 18. Bf4 Nxe5 19. Bxe5 Qd8 {0-1 David,P (2335)-Hawelko,M (2385) Warsaw op 1988}) 14. fxe3 {[%emt 0:00:39]} g6 {[%emt 0:01:04]} 15. Ne5 {[%emt 0:03:56]} Kg7 {[%emt 0:23:42]} 16. Ba2 {[%emt 0:06:38]} Nd7 {[%emt 0:10:15]} 17. Ng4 {[%emt 0:07:55]} (17. Nf3 $14) 17... f5 $11 {[%emt 0:04:55]} 18. Nf2 {[%emt 0:00:53]} a6 {[%emt 0:04:01]} (18... Nf6 $11) 19. Rad1 {[%emt 0:04:57]} (19. e4 $14) 19... b5 {[%emt 0:02:09]} 20. d5 {[%emt 0:07:16]} (20. e4 $11) 20... e5 {[%emt 0:00:55]} (20... Nc5 $5 {[%cal Rc5d3]} 21. Qe2 e5 $11) 21. e4 {[%emt 0:00:37]} (21. Nfe4 $1 $11 fxe4 22. Nxe4) 21... f4 $17 {[%emt 0:02:43]} 22. b4 {[%emt 0:07:08]} (22. Kh1 $142) 22... Nf6 {[%emt 0:00:29]} 23. Qe2 {[%emt 0:02:26]} Bd8 {[%emt 0:01:31]} 24. Rc1 {[%emt 0:04:50]} (24. Kh1 $142) 24... Bb6 $19 {[%emt 0:00:22]} 25. Kh1 {[%emt 0:00:37]} g5 {[%emt 0:01:48]} 26. Nd3 {[%emt 0:02:42]} (26. Ncd1 $142) 26... Ng4 {[%emt 0:02:54][%cal Og4h2] And now ...Nxh2! would win.} 27. Nd1 $2 {[%emt 0:04:52]} (27. h3 Qh6 28. Nd1) 27... Qh6 {[%emt 0:07:50][%csl Gg4][%cal Rh6h2]} 28. h3 {[%emt 0:00:53] [#]} Nf6 $1 {[%emt 0:03:54][%cal Oc8h3] aiming for ...Bxh3!} 29. Nxe5 $2 {[%emt 0:18:29]} (29. N1f2 Nh5 30. Kh2) 29... g4 $2 {[%emt 0:00:07]} (29... Bxh3 {[%csl Gf6][%cal Rh3g4]} 30. Qf2 Nxe4 31. Qxb6 Ng3+ {[%mdl 64] Zwischenzug, Double Attack} 32. Kg1 Qxb6+ 33. Rc5 Nxf1 34. gxh3 f3) 30. Rxc8 $2 {[%emt 0:00:29]} ({Don't blunder} 30. Rc6 $2 gxh3 31. Rxb6 hxg2+ 32. Kxg2 Bh3+ 33. Kh1 (33. Kf2 $2 Qh4+ 34. Kg1 Rg8 $19) 33... Bxf1+ 34. Qh2 Qg5 $19) (30. Nf2 {nothing else works.} Nh5 31. Qb2 (31. Nfxg4 $2 Ng3+ 32. Kh2 Nxe2 $19) (31. Rc3 $2 f3 $19) 31... Ng3+ 32. Kh2 (32. Kg1 $2 Rf6 $19) 32... Nxf1+ 33. Rxf1) 30... Raxc8 {[%emt 0:00:17]} 31. Nxg4 {[%emt 0:00:12]} Nxg4 {[%emt 0:01:42]} 32. Qxg4+ {[%emt 0:00:05]} Kh8 {[%emt 0:00:07][%cal Of4f3] ...f3! would be deadly.} 33. e5 $2 {[%emt 0:02:28]} (33. Qe6 Qxe6 34. dxe6) 33... Rc2 $2 {[%emt 0:00:54]} (33... f3 34. d6 Rc2 35. Rxf3 Rxa2 36. Rxf8+ Qxf8) 34. Bb3 {[%emt 0:02:26]} Rd2 {[%emt 0:00:06]} (34... Rxg2 $19 35. Qxg2 Rg8) 35. d6 $11 {[%emt 0:02:09]} Rd3 {[%emt 0:00:19]} ({Black should play} 35... Qg7 $11 36. Qxg7+ (36. Rxf4 $2 {perishes.} Rxf4 37. Qxg7+ Kxg7 $19) 36... Kxg7) 36. Rf3 $14 {[%emt 0:02:24]} Rd4 {[%emt 0:02:15] Black is weak on the light squares} ({Black should try} 36... Rd2 $14) 37. Qd7 $2 {[%emt 0:01:18][%mdl 8192] This costs White the game.} (37. Nc3 $16 {and life is bright.}) 37... Re4 $19 {[%emt 0:00:28][%cal Bd4e4,Be4e5,Be5e2][%mdl 32]} 38. Rf1 {[%emt 0:05:22] Repels Re1} (38. Kh2 Rxe5 39. Nf2) 38... Rxe5 {[%emt 0:03:22][%cal Of4f3] ( -> ...f3!)} 39. Qc6 {[%emt 0:00:21]} Bd4 {[%emt 0:00:00]} (39... f3 40. Nf2 Bxf2) 40. Qxa6 $2 {[%emt 0:00:55] [#]} (40. Qf3 $19) 40... f3 $1 {[%emt 0:00:00][%mdl 512] Black mates.} 41. Qc6 {[%emt 0:06:54]} (41. Bd5 Rxd5) 41... Re2 {[%emt 0:07:58]} 42. Rxf3 {[%emt 0:07:21]} Re1+ {[%emt 0:00:16]} 43. Kh2 {[%emt 0:00:12]} Bg1+ {[%emt 0:01:11]} 44. Kh1 {[%emt 0:00:39]} Bc5+ {[%emt 0:00:45][%mdl 64] Discovered Attack} 45. Kh2 {[%emt 0:00:35]} Bxd6+ {[%emt 0:00:42]} 46. g3 {[%emt 0:02:20] [#]} Bxg3+ $1 {[%emt 0:04:51][%mdl 576] Discovered Attack, Decoy} 47. Kxg3 {[%emt 0:00:22]} (47. Rxg3 Qxc6) 47... Qg5+ {[%emt 0:01:15]} 48. Kf2 {[%emt 0:00:49]} Qg1# {[%emt 0:00:05] A fantastic game!   Weighted Error Value: White=1.06/Black=0.84} 0-1

[Event "DFMM-LV 2023"]
[Site "Braunfels"]
[Date "2023.06.11"]
[Round "5.8"]
[White "Moeller, Lisa-Marie"]
[Black "Sokyrko, Sofiia"]
[Result "1-0"]
[Annotator "NA RC COMBH"]
[ECO "C25"]
[WhiteElo "1897"]
[BlackElo "1503"]
[PlyCount "69"]
[EventDate "2023.06.09"]
[EventType "team-tourn"]
[EventCountry "GER"]
[SourceTitle "playchess.com"]
[Source "ChessBase"]
[SourceQuality "1"]
[TimeControl "40/5400+30:1800+30"]

1. e4 {[%emt 0:00:01]} e5 {[%emt 0:00:09]} 2. Nc3 {[%emt 0:00:04]} Nc6 {[%emt 0:00:10]} 3. Bc4 {[%emt 0:00:06]} Bc5 {[%emt 0:00:07]} 4. Qg4 {[%emt 0:00:19]} Kf8 {[%emt 0:00:30]} 5. Qf3 {[%emt 0:03:58]} Nf6 {[%emt 0:00:31]} 6. Nge2 {[%emt 0:02:29]} d6 {[%emt 0:01:17]} 7. h3 {[%emt 0:05:09]} Qe7 {[%emt 0:05:06]} 8. d3 {[%emt 0:08:33]} Be6 {[%emt 0:02:23]} 9. Bxe6 {[%emt 0:03:42]} Qxe6 {[%emt 0:00:16]} 10. Bg5 {[%emt 0:06:22]} Nd4 {[%emt 0:04:38]} 11. Nxd4 {[%emt 0:00:47]} exd4 {[%emt 0:00:07]} 12. Bxf6 {[%emt 0:01:18]} dxc3 {[%emt 0:00:36]} 13. Bxc3 {[%emt 0:00:30]} Re8 {[%emt 0:01:00]} 14. O-O {[%emt 0:01:37]} Rg8 {[%emt 0:02:15]} 15. d4 {[%emt 0:06:04]} Bb6 $18 {[%emt 0:01:26]} 16. e5 {[%emt 0:14:45]} dxe5 {[%emt 0:01:47]} 17. Bb4+ {[%emt 0:00:34]} c5 {[%emt 0:00:36]} 18. dxc5 {[%emt 0:00:12]} Bc7 {[%emt 0:00:11]} 19. Qxb7 {[%emt 0:02:18]} Qe7 {[%emt 0:00:17]} 20. c6 {[%emt 0:03:16]} Bd6 {[%emt 0:00:07]} 21. Bxd6 {[%emt 0:01:51]} Qxd6 {[%emt 0:00:13]} 22. Rfd1 {[%emt 0:01:45]} Qb8 {[%emt 0:00:55]} 23. Qxb8 {[%emt 0:01:38]} Rxb8 {[%emt 0:00:06]} 24. c7 {[%emt 0:00:05]} Rc8 {[%emt 0:00:06]} 25. Rd7 {[%emt 0:01:52]} Ke8 {[%emt 0:11:47]} 26. Rad1 {[%emt 0:00:48]} Rf8 {[%emt 0:00:39]} 27. b4 {[%emt 0:01:14]} h6 {[%emt 0:00:29]} 28. b5 {[%emt 0:00:21]} g5 {[%emt 0:00:09]} 29. a4 {[%emt 0:00:34]} f5 {[%emt 0:00:08]} 30. a5 {[%emt 0:00:53]} g4 {[%emt 0:00:09]} 31. hxg4 {[%emt 0:00:32]} fxg4 {[%emt 0:00:08]} 32. b6 {[%emt 0:00:10]} axb6 {[%emt 0:00:11]} 33. axb6 {[%emt 0:00:07]} g3 {[%emt 0:00:11]} 34. fxg3 {[%emt 0:01:02]} e4 {[%emt 0:00:06]} 35. b7 {[%emt 0:33:04]} 1-0

[Event "DFMM-LV 2023"]
[Site "Braunfels"]
[Date "2023.06.11"]
[Round "5.9"]
[White "Koehler, Inken"]
[Black "Rogule, Laura"]
[Result "0-1"]
[Annotator "TA"]
[ECO "B22"]
[WhiteElo "2008"]
[BlackElo "2218"]
[PlyCount "112"]
[EventDate "2023.06.09"]
[EventType "team-tourn"]
[EventCountry "GER"]
[SourceTitle "playchess.com"]
[Source "ChessBase"]
[SourceQuality "1"]
[TimeControl "40/5400+30:1800+30"]

{[%evp 20,112,0,0,0,0,0,0,1,-7,-9,-22,-24,-27,-33,-33,-16,-18,-25,-55,-46,-54,-70,-76,-25,-21,0,0,0,0,0,0,0,0,0,0,0,0,0,0,0,0,0,0,0,0,0,-11,0,0,0,-76,-77,-85,-77,-77,-77,-92,-92,-143,-142,-80,-43,-129,-129,-231,-127,-145,-38,-143,-143,-143,-142,-142,-142,-29977,-150,-29977,-29978,-29978,-29978,-29978,-8,-8,-8,-29981,-29982,-29982,-29983,-29983,-29984,-29984,-29985,-29985,-29986]} 1. e4 {[%emt 0:00:03]} c5 {[%emt 0:00:09]} 2. c3 {[%emt 0:00:06]} Nf6 {[%emt 0:00:36]} 3. e5 {[%emt 0:00:09]} Nd5 {[%emt 0:00:06]} 4. d4 {[%emt 0:00:07]} cxd4 {[%emt 0:00:32]} 5. cxd4 {[%emt 0:00:06]} d6 {[%emt 0:08:04]} 6. Nf3 {[%emt 0:08:11]} Nc6 {[%emt 0:07:17]} 7. Bc4 {[%emt 0:14:35][%cal Bf1c4,Bc4b3,Bb3d1][%mdl 32]} Nb6 {[%emt 0:03:51]} 8. Bb3 {[%emt 0:03:13]} dxe5 {[%emt 0:03:46]} 9. Nxe5 {[%emt 0:04:56]} Nxe5 {[%emt 0:02:23]} 10. dxe5 {[%emt 0:00:04]} Qxd1+ {[%emt 0:01:36]} 11. Bxd1 {[%emt 0:03:53]} Bd7 {[%emt 0:03:50] B22: Sicilian: 2 c3.} 12. O-O {[%emt 0:01:25]} Rc8 {[%emt 0:08:48]} 13. Bf3 {[%emt 0:13:09]} Bc6 {[%emt 0:04:30] The position is equal.} 14. Nd2 {[%emt 0:00:49][%cal Oe5e6]} e6 {[%emt 0:11:47]} 15. b3 {[%emt 0:02:08]} Bxf3 {[%emt 0:03:14]} 16. Nxf3 {[%emt 0:00:08] [#]} Bb4 $146 {[%emt 0:05:16]} ({Predecessor:} 16... Nd5 17. Bb2 Be7 18. Rac1 Kd7 19. g3 Rhd8 20. Rfd1 Ke8 21. Kf1 g5 22. h3 h6 {0-1 Clissold,B (2135)-Bates,R (2260) Aberdeen op 1994 (3)}) 17. Bb2 {[%emt 0:08:36]} Nd5 {[%emt 0:04:42]} (17... Rc2 $5 {[%cal Rc2b2]} 18. a3 Be7 $11) 18. Rac1 {[%emt 0:02:59]} Ke7 {[%emt 0:01:10]} 19. a3 {[%emt 0:04:28]} Bc3 {[%emt 0:01:42]} 20. Bxc3 {[%emt 0:01:35]} Nxc3 {[%emt 0:00:04]} 21. Rc2 {[%emt 0:00:35] Dodges Ne2+} a5 {[%emt 0:05:35]} (21... Nb5 $17 22. Rxc8 Rxc8) 22. g3 {[%emt 0:06:44]} b5 {[%emt 0:02:16]} 23. Kg2 {[%emt 0:01:07]} Rhd8 {[%emt 0:01:22]} 24. Rfc1 {[%emt 0:02:10]} b4 {[%emt 0:00:08]} 25. axb4 {[%emt 0:00:21]} axb4 {[%emt 0:00:05]} 26. Ra1 {[%emt 0:03:40]} Rd7 {[%emt 0:03:09]} 27. Nd2 {[%emt 0:02:14]} Rcc7 {[%emt 0:04:20]} 28. Nc4 {[%emt 0:01:05]} Ra7 {[%emt 0:05:29]} 29. Rxa7 {[%emt 0:03:47]} Rxa7 $11 {[%emt 0:00:05][%mdl 4096] Endgame KRN-KRN} 30. Rd2 {[%emt 0:00:06]} Nd5 {[%emt 0:01:55]} 31. Kf3 {[%emt 0:01:10]} Ra1 {[%emt 0:00:38]} 32. Ne3 {[%emt 0:01:53]} Rb1 {[%emt 0:04:31]} 33. Rd3 {[%emt 0:02:43]} Rb2 {[%emt 0:02:14]} 34. Nxd5+ {[%emt 0:03:33]} exd5 {[%emt 0:00:05] KR-KR} 35. Ke3 {[%emt 0:00:06]} (35. Rxd5 $11 Rxb3+ 36. Ke4) 35... Ke6 $17 {[%emt 0:00:19]} 36. f4 {[%emt 0:00:35]} g5 {[%emt 0:01:13]} (36... Rxh2 $6 37. Rd4 $11) 37. Kd4 {[%emt 0:04:21]} gxf4 {[%emt 0:01:09]} 38. gxf4 {[%emt 0:00:02]} Rf2 $1 {[%emt 0:00:19] Black has more active pieces.} 39. Kc5 {[%emt 0:01:50]} Rxf4 {[%emt 0:00:52]} 40. Rxd5 {[%emt 0:00:39]} Rf3 {[%emt 0:00:41] Strongly threatening ...Rc3+.} 41. Rd2 {[%emt 0:10:14]} (41. Rd8 $1 $15) 41... Rxb3 {[%emt 0:00:40][%cal Ob3h3]} 42. Kc4 {[%emt 0:02:26]} (42. Rf2 $17) 42... Rb1 {[%emt 0:02:47]} (42... Rh3 $19 43. Kxb4 Kxe5) 43. Rf2 {[%emt 0:01:09]} Re1 {[%emt 0:12:16]} ({Don't play} 43... Kxe5 $6 44. Rxf7 h5 45. Rh7 $11 (45. Rb7 Kf4 $17)) (43... Rc1+ $17 44. Kxb4 Rc7) 44. Kxb4 {[%emt 0:08:22]} (44. Rf6+ $1 $15 Kxe5 45. Rxf7 Re4+ 46. Kb3) 44... Rxe5 {[%emt 0:00:20]} ({But not} 44... Kxe5 $6 45. Rxf7 Re4+ 46. Kc5 $11) 45. Kc4 {[%emt 0:01:05]} f5 {[%emt 0:01:31][%cal Bf7f5,Bf5e4,Be4e3][%mdl 32]} 46. Kd3 {[%emt 0:00:58]} Re4 {[%emt 0:03:49] Wards off Rf4} 47. Re2 $2 {[%emt 0:09:37][%mdl 8192]} (47. Rf3 $17) 47... Ke5 $2 {[%emt 0:06:05]} (47... Rxe2 48. Kxe2 f4 49. Kf2 Kf5 50. Kf3 Ke5 51. h4 h5 52. Kf2 Ke4 53. Ke2 f3+ 54. Kf2 Kf4 55. Kf1 Kg3 56. Kg1 Kxh4 57. Kf2 Kg4 58. Kf1 Kg3 59. Ke1 h4 60. Kf1 f2 61. Ke2 h3 62. Kd3 f1=Q+ 63. Ke4 h2 64. Kd5 h1=Q+ 65. Kd4 Qc6 66. Ke3 Qf2+ 67. Kd3 Qcc2#) 48. Rxe4+ $2 {[%emt 0:00:39]} (48. Rb2 $17) 48... fxe4+ {[%emt 0:00:10] KPP-KP} 49. Ke3 {[%emt 0:00:02]} h5 {[%emt 0:00:36]} 50. Ke2 {[%emt 0:00:29]} h4 $2 {[%emt 0:03:13]} (50... Kf4 {mates} 51. Kf2 h4 52. h3 e3+ 53. Ke2 Ke4 54. Ke1 Kf3 55. Kf1 Kg3 56. Ke2 Kxh3 57. Kf3 Kh2 58. Kxe3 Kg3 59. Kd4 h3 60. Kc3 Kf4 61. Kc2 Ke3 62. Kc3 h2 63. Kc4 Ke4 64. Kc5 h1=Q 65. Kc4 Qh5 66. Kb3 Qc5 67. Ka2 Qb5 68. Ka3 Kd4 69. Ka2 Kc3 70. Ka3 Qb3#) 51. Ke3 $11 {[%emt 0:00:32]} Kf5 {[%emt 0:00:43]} 52. Ke2 $2 {[%emt 0:00:30][%mdl 8192]} (52. Kf2 $11 Kf4 53. h3 e3+ 54. Ke2 Ke4 55. Ke1 Kf3 56. Kf1 Kg3 57. Ke2 Kxh3 58. Kf3 Kh2 59. Kxe3 Kg3 60. Ke4 h3 61. Ke5 h2 62. Ke6 Kf3 63. Kf7 h1=Q 64. Ke7 Qd1 65. Ke6 Kf4 66. Kf7 Kf5 67. Ke7 Qd4 68. Kf8 Qa7 69. Ke8 Ke6 70. Kf8 Qf7#) 52... Kf4 {[%emt 0:00:22] Black mates.} 53. Kf2 {[%emt 0:00:14] [#]} e3+ $1 {[%emt 0:00:29]} (53... h3 54. Ke2 $11) 54. Ke2 {[%emt 0:00:04] [#]} Ke4 $1 {[%emt 0:00:33]} ({Stronger than} 54... h3 55. Ke1 $11) 55. h3 {[%emt 0:00:37]} Kf4 {[%emt 0:00:14]} 56. Ke1 {[%emt 0:00:12]} Kg3 {[%emt 0:00:30] Weighted Error Value: White=0.63/Black=0.36.  Loses game:     	White=3     	---        Missed win:     	---       	Black=1      Mistake:       	White=4     	Black=3      Inaccurate:     	White=1     	Black=1      OK:         	White=18    	Black=12     Best:        	White=1     	Black=7      Strong:       	---       	Black=1      Brilliant:      	---       	---} 0-1

[Event "DFMM-LV 2023"]
[Site "Braunfels"]
[Date "2023.06.11"]
[Round "5.10"]
[White "Otikova, Elina"]
[Black "Kopylov, Luba"]
[Result "1-0"]
[Annotator "TA"]
[ECO "B73"]
[WhiteElo "2047"]
[BlackElo "1993"]
[PlyCount "173"]
[EventDate "2023.06.09"]
[EventType "team-tourn"]
[EventCountry "GER"]
[SourceTitle "playchess.com"]
[Source "ChessBase"]
[SourceQuality "1"]
[TimeControl "40/5400+30:1800+30"]

{[%evp 18,173,27,14,28,32,54,40,45,0,14,10,12,-13,-6,0,-6,-12,0,-9,0,0,0,-12,14,-14,0,-30,-28,-38,-37,-27,-1,-18,-14,-39,0,-77,0,0,0,-2,-19,-19,0,0,0,0,0,-40,0,0,3,0,0,2,31,25,388,387,380,368,385,376,2447,1862,3172,2586,1097,831,3100,1368,2756,2388,6717,1549,6809,6803,6187,6186,6352,6082,5601,5589,5289,4698,4928,2468,2314,4542,4554,4542,4900,4431,2991,2125,1637,142,142,142,143,142,142,142,275,275,268,268,260,260,29972,29973,29973,29974,29974,29975,29975,29976,29976,29977,29977,29978,29977,29979,29976,29976,29977,29977,29980,29976,29989,29990,29990,29991,29991,29987,29986,29985,29985,29986,29986,29986,29986,29987,29990,29991,29991,29992,29992,29993,29993,29994,29998,29998,29998,29995,29995,29995]} 1. e4 {[%emt 0:00:02]} c5 {[%emt 0:00:18]} 2. Nf3 {[%emt 0:00:07]} d6 {[%emt 0:00:07]} 3. d4 {[%emt 0:00:14]} cxd4 {[%emt 0:00:06]} 4. Nxd4 {[%emt 0:00:06]} Nf6 {[%emt 0:00:08]} 5. Nc3 {[%emt 0:00:18]} g6 {[%emt 0:00:07]} 6. Be2 {[%emt 0:00:32]} Bg7 {[%emt 0:00:50]} 7. O-O {[%emt 0:00:17]} O-O {[%emt 0:01:36]} 8. Be3 {[%emt 0:00:13]} Nc6 {[%emt 0:01:58]} 9. Qd2 {[%emt 0:00:13]} Bd7 {[%emt 0:14:39]} 10. f3 {[%emt 0:00:14] 10.Rfd1 is the modern continuation.} Qc8 {[%emt 0:07:09] B73: Sicilian Dragon: Classical System without 9 Nb3.} 11. Rfd1 {[%emt 0:04:04]} Ne5 {[%emt 0:02:43] [#]} 12. Bg5 $146 {[%emt 0:09:49]} ({Predecessor:} 12. a4 Rd8 13. Ndb5 b6 14. Na3 Bc6 15. Bd4 Bb7 16. Bxe5 dxe5 17. Qxd8+ Qxd8 18. Rxd8+ Rxd8 {1-0 Dzhumaev,M (2565)-Dauletova,G (2235) Central Asia Cup 3rd 2013 (2)}) 12... Re8 {[%emt 0:06:27] White is slightly better.} 13. Nb3 {[%emt 0:06:53]} Be6 {[%emt 0:04:25]} 14. Bb5 {[%emt 0:12:53]} Rf8 {[%emt 0:15:36]} 15. Nd5 {[%emt 0:13:50]} Bxd5 {[%emt 0:05:09]} 16. exd5 {[%emt 0:00:15]} Qc7 {[%emt 0:05:06]} 17. Qf2 {[%emt 0:08:49]} Rfc8 {[%emt 0:02:17]} 18. c3 $1 {[%emt 0:03:03]} h5 {[%emt 0:02:29]} 19. Bf1 {[%emt 0:01:34]} a6 {[%emt 0:03:09]} 20. h3 {[%emt 0:01:33]} b5 {[%emt 0:00:19]} 21. Rac1 {[%emt 0:08:38]} Nc4 {[%emt 0:03:20]} 22. Bxc4 {[%emt 0:05:53]} bxc4 {[%emt 0:02:30]} 23. Bxf6 {[%emt 0:02:52]} Bxf6 {[%emt 0:00:59]} 24. Nd2 {[%emt 0:00:43]} Rab8 {[%emt 0:03:29]} (24... Rcb8 $5 {[%cal Rb8b2]} 25. Nf1 Rb5 $11) 25. Ne4 {[%emt 0:00:20]} Bg7 {[%emt 0:00:16]} 26. Rc2 {[%emt 0:00:35]} Rb7 {[%emt 0:01:51]} 27. Qe3 {[%emt 0:04:06]} (27. f4 $11) 27... Qb6 {[%emt 0:02:28]} (27... Rcb8 $17 28. Rdd2 Qa5) 28. Qxb6 $11 {[%emt 0:00:27]} Rxb6 {[%emt 0:00:04]} 29. f4 {[%emt 0:00:45]} Rcb8 {[%emt 0:00:59]} 30. Rdd2 {[%emt 0:00:17]} Bh6 {[%emt 0:02:10]} 31. Ng5 {[%emt 0:01:40]} Bxg5 {[%emt 0:04:35]} 32. fxg5 {[%emt 0:00:05][%mdl 4096] Endgame KRR-KRR} e6 {[%emt 0:00:30]} 33. Rd4 {[%emt 0:09:29]} Rxb2 {[%emt 0:03:35]} (33... exd5 $5 {[%cal Rb6b2]} 34. Rdd2 Kf8 $15) 34. Rxb2 {[%emt 0:00:06]} Rxb2 {[%emt 0:00:04]} 35. dxe6 {[%emt 0:00:10]} fxe6 {[%emt 0:00:41] ...d5 is the strong threat.} 36. Rxd6 {[%emt 0:00:05]} Rxa2 {[%emt 0:01:11]} 37. Rxe6 $15 {[%emt 0:00:09] KR-KR} a5 $2 {[%emt 0:01:40][%mdl 8192] This costs Black the game.} (37... Kg7 $11 {and Black stays safe.}) 38. Rxg6+ $18 {[%emt 0:00:11]} Kf7 {[%emt 0:00:12]} 39. Rc6 {[%emt 0:01:25]} a4 {[%emt 0:00:37]} 40. Rxc4 {[%emt 0:01:13]} Kg6 $2 {[%emt 0:01:09] [#]} (40... a3 41. Ra4 h4) 41. h4 $1 {[%emt 0:31:17] Hoping for Kh2.} Kf5 {[%emt 0:30:51]} 42. Kh2 {[%emt 0:01:36]} Ra1 {[%emt 0:01:30]} 43. Kg3 {[%emt 0:00:00] Strongly threatening Rf4+.} a3 {[%emt 0:00:00]} 44. Ra4 {[%emt 0:00:00]} (44. Rf4+ $142 Kg6 45. Rf6+ Kh7 46. Ra6) 44... a2 {[%emt 0:00:00]} 45. c4 {[%emt 0:00:00]} Rc1 {[%emt 0:00:00]} 46. Ra5+ {[%emt 0:00:00]} (46. Rxa2 $142 Rc3+ 47. Kh2) 46... Kg6 {[%emt 0:00:00]} 47. Rxa2 {[%emt 0:00:00]} Rc3+ {[%emt 0:00:00]} 48. Kh2 {[%emt 0:00:00]} Rxc4 {[%emt 0:00:00]} 49. Kh3 {[%emt 0:00:00]} Rc3+ {[%emt 0:00:00]} 50. g3 {[%emt 0:00:00]} Rc6 {[%emt 0:00:00]} 51. Ra3 {[%emt 0:00:00]} Rb6 {[%emt 0:00:00]} 52. Kg2 {[%emt 0:00:00]} Kf5 {[%emt 0:00:00]} 53. Rf3+ {[%emt 0:00:00]} Kg6 {[%emt 0:00:00]} 54. Kh3 {[%emt 0:00:00]} Rc6 {[%emt 0:00:00]} 55. g4 {[%emt 0:00:00]} Rd6 {[%emt 0:00:00] [#]} 56. Kg3 $1 {[%emt 0:00:00]} Ra6 {[%emt 0:00:00]} 57. Rf4 $2 {[%emt 0:02:09]} (57. Re3 $18 hxg4 58. Re8 (58. Kxg4 Ra4+ 59. Kh3 Kh5 $11)) 57... Ra3+ $16 {[%emt 0:00:00]} 58. Kg2 {[%emt 0:02:29] White wants to mate with Rf6+.} Ra6 {[%emt 0:00:00] Prevents Rf6+} 59. Kf3 {[%emt 0:02:31]} Ra3+ {[%emt 0:00:00]} 60. Ke4 {[%emt 0:01:44]} Ra4+ {[%emt 0:00:00]} (60... hxg4 $16 {keeps fighting.} 61. Rxg4 Ra4+ 62. Kf3 Ra3+ 63. Kg2 Ra2+ 64. Kf3 Ra3+ 65. Kf4 Ra4+ 66. Kg3 Ra3+ 67. Kg2 Kh5) 61. Ke5 $18 {[%emt 0:00:20]} Ra5+ {[%emt 0:00:00]} 62. Kd6 {[%emt 0:00:27]} Ra6+ {[%emt 0:00:00]} 63. Kc5 {[%emt 0:00:25]} Re6 $2 {[%emt 0:00:00]} (63... hxg4 $18 64. Rxg4 Ra5+ 65. Kb6 Rd5) 64. Kd5 {[%emt 0:00:27] White mates.} Re1 {[%emt 0:05:59]} 65. Rf6+ {[%emt 0:00:37][%mdl 64] Deflection} Kg7 {[%emt 0:00:04]} 66. gxh5 {[%emt 0:00:15]} Rd1+ {[%emt 0:00:38]} 67. Ke5 {[%emt 0:01:24]} Re1+ {[%emt 0:00:05]} 68. Kd6 {[%emt 0:00:15]} Rd1+ {[%emt 0:00:21]} 69. Ke7 {[%emt 0:00:12]} Re1+ {[%emt 0:00:04]} 70. Re6 {[%emt 0:00:19]} Rf1 {[%emt 0:00:59]} 71. h6+ {[%emt 0:01:03]} Kh7 {[%emt 0:00:32]} 72. Rf6 {[%emt 0:00:20]} Re1+ {[%emt 0:00:43]} 73. Kf7 {[%emt 0:00:11]} Kh8 {[%emt 0:00:34]} 74. g6 {[%emt 0:00:28]} Rg1 {[%emt 0:01:11]} 75. h5 {[%emt 0:00:42]} Rg2 {[%emt 0:00:53]} 76. g7+ {[%emt 0:03:08]} Kh7 {[%emt 0:00:16]} 77. Rg6 {[%emt 0:00:39][%csl Gf7][%cal Rg7g8]} Rf2+ {[%emt 0:01:53]} 78. Ke6 {[%emt 0:00:13][%cal Rg7g8]} Re2+ {[%emt 0:00:23]} 79. Kf5 {[%emt 0:00:12][%cal Rg7g8]} Re8 {[%emt 0:00:16]} 80. Rf6 {[%emt 0:00:19]} Ra8 {[%emt 0:02:04]} 81. Rf8 {[%emt 0:00:15]} Ra5+ {[%emt 0:00:18]} 82. Ke4 {[%emt 0:00:09][%csl Gg7][%cal Rf8h8]} Ra4+ {[%emt 0:00:16]} 83. Kd3 {[%emt 0:00:08][%csl Gg7][%cal Rf8h8]} Kxh6 {[%emt 0:01:57]} 84. g8=Q {[%emt 0:00:25][%csl Gh5][%cal Rg8g6]} Rg4 {[%emt 0:00:02]} 85. Qh8+ {[%emt 0:00:30]} Kg5 {[%emt 0:00:04]} 86. Rg8+ {[%emt 0:00:08]} Kf5 {[%emt 0:00:17]} 87. Rxg4 {[%emt 0:00:11] Weighted Error Value: White=0.14 (very precise) /Black=0.40} 1-0